[Event "Titled Tuesday Blitz November 07 Early 2023"]
[White "KorolDimitriy75"]
[Black "ArtemDyachuk"]
[WhiteElo "2342"]
[BlackElo "2607"]
[Result "1/2-1/2"]
[Round "2"]
[TimeControl "180+1"]
[Date "2023.11.07"]
[WhiteClock "0:00:12"]
[BlackClock "0:00:13"]
[Board "166"]

1. d4 {[%clk 0:02:57]}  d5 {[%clk 0:02:54]} 2. c4 {[%clk 0:02:57]}  c6 {[%clk 0:02:55]} 3. Nc3 {[%clk 0:02:57]}  Nf6 {[%clk 0:02:54]} 4. e3 {[%clk 0:02:57]}  Bf5 {[%clk 0:02:52]} 5. Nf3 {[%clk 0:02:57]}  e6 {[%clk 0:02:47]} 6. Bd3 {[%clk 0:02:57]}  Bxd3 {[%clk 0:02:46]} 7. Qxd3 {[%clk 0:02:58]}  Nbd7 {[%clk 0:02:46]} 8. O-O {[%clk 0:02:58]}  Bd6 {[%clk 0:02:45]} 9. e4 {[%clk 0:02:58]}  dxe4 {[%clk 0:02:44]} 10. Nxe4 {[%clk 0:02:59]}  Nxe4 {[%clk 0:02:45]} 11. Qxe4 {[%clk 0:03:00]}  Nf6 {[%clk 0:02:45]} 12. Qe2 {[%clk 0:03:00]}  h6 {[%clk 0:02:34]} 13. Be3 {[%clk 0:02:46]}  O-O {[%clk 0:02:33]} 14. h3 {[%clk 0:02:42]}  Qe7 {[%clk 0:02:31]} 15. Rad1 {[%clk 0:02:40]}  c5 {[%clk 0:02:30]} 16. b3 {[%clk 0:02:15]}  Rad8 {[%clk 0:02:25]} 17. Rd3 {[%clk 0:01:44]}  cxd4 {[%clk 0:02:21]} 18. Nxd4 {[%clk 0:01:43]}  Bb8 {[%clk 0:02:21]} 19. Rfd1 {[%clk 0:01:40]}  Qc7 {[%clk 0:02:10]} 20. Nf3 {[%clk 0:01:34]}  Ne4 {[%clk 0:02:04]} 21. Bxa7 {[%clk 0:00:55]}  Bxa7 {[%clk 0:01:54]} 22. Qxe4 {[%clk 0:00:54]}  Bb6 {[%clk 0:01:44]} 23. b4 {[%clk 0:00:29]}  Rxd3 {[%clk 0:01:20]} 24. Rxd3 {[%clk 0:00:30]}  Qe7 {[%clk 0:01:21]} 25. c5 {[%clk 0:00:30]}  Bc7 {[%clk 0:01:21]} 26. g3 {[%clk 0:00:28]}  Bb8 {[%clk 0:01:07]} 27. Kg2 {[%clk 0:00:27]}  Qc7 {[%clk 0:00:57]} 28. a4 {[%clk 0:00:27]}  Ba7 {[%clk 0:00:53]} 29. a5 {[%clk 0:00:27]}  Re8 {[%clk 0:00:50]} 30. Nd4 {[%clk 0:00:20]}  Qe7 {[%clk 0:00:36]} 31. Nb5 {[%clk 0:00:19]}  Bb8 {[%clk 0:00:33]} 32. Nd6 {[%clk 0:00:18]}  Rd8 {[%clk 0:00:34]} 33. Qd4 {[%clk 0:00:17]}  Qd7 {[%clk 0:00:32]} 34. h4 {[%clk 0:00:16]}  Qc6+ {[%clk 0:00:32]} 35. Kg1 {[%clk 0:00:17]}  Qa4 {[%clk 0:00:30]} 36. Qf4 {[%clk 0:00:15]}  Rd7 {[%clk 0:00:29]} 37. Kg2 {[%clk 0:00:14]}  Qc6+ {[%clk 0:00:28]} 38. Qf3 {[%clk 0:00:14]}  Qc7 {[%clk 0:00:24]} 39. Nc4 {[%clk 0:00:13]}  Rxd3 {[%clk 0:00:18]} 40. Qxd3 {[%clk 0:00:14]}  Qc6+ {[%clk 0:00:18]} 41. Qf3 {[%clk 0:00:14]}  Qb5 {[%clk 0:00:17]} 42. Qc3 {[%clk 0:00:13]}  Qc6+ {[%clk 0:00:16]} 43. Qf3 {[%clk 0:00:12]}  Qb5 {[%clk 0:00:14]} 44. Qc3 {[%clk 0:00:12]}  Qc6+ {[%clk 0:00:13]} 45. Qf3 {[%clk 0:00:12]} 1/2-1/2


[Site "https://www.chess.com"]

[Event "Titled Tuesday Blitz November 07 Early 2023"]
[White "Skaric, Djuro"]
[Black "Zomorrodian, Eilia"]
[WhiteFideId "934569"]
[BlackFideId "12551805"]
[WhiteElo "2339"]
[BlackElo "2593"]
[Result "1-0"]
[Round "2"]
[TimeControl "180+1"]
[Date "2023.11.07"]
[WhiteClock "0:02:09"]
[BlackClock "0:01:13"]
[Board "168"]

1. g3 {[%clk 0:03:00]}  Nf6 {[%clk 0:02:53]} 2. Bg2 {[%clk 0:03:01]}  g6 {[%clk 0:02:54]} 3. d3 {[%clk 0:03:01]}  Bg7 {[%clk 0:02:54]} 4. Nc3 {[%clk 0:03:02]}  O-O {[%clk 0:02:55]} 5. e4 {[%clk 0:03:02]}  d6 {[%clk 0:02:56]} 6. f4 {[%clk 0:03:03]}  c5 {[%clk 0:02:56]} 7. Nf3 {[%clk 0:03:03]}  Nc6 {[%clk 0:02:57]} 8. O-O {[%clk 0:03:03]}  Nd4 {[%clk 0:02:56]} 9. h3 {[%clk 0:03:04]}  a6 {[%clk 0:02:55]} 10. g4 {[%clk 0:03:04]}  Rb8 {[%clk 0:02:48]} 11. Ne2 {[%clk 0:03:04]}  Nxf3+ {[%clk 0:02:46]} 12. Bxf3 {[%clk 0:03:04]}  b5 {[%clk 0:02:45]} 13. g5 {[%clk 0:03:04]}  Nd7 {[%clk 0:02:41]} 14. Kg2 {[%clk 0:03:05]}  f6 {[%clk 0:02:30]} 15. h4 {[%clk 0:03:05]}  fxg5 {[%clk 0:02:30]} 16. hxg5 {[%clk 0:03:05]}  e5 {[%clk 0:02:31]} 17. f5 {[%clk 0:03:01]}  gxf5 {[%clk 0:02:29]} 18. exf5 {[%clk 0:03:01]}  Bb7 {[%clk 0:02:12]} 19. Bxb7 {[%clk 0:02:58]}  Rxb7 {[%clk 0:02:13]} 20. Ng3 {[%clk 0:02:58]}  d5 {[%clk 0:02:09]} 21. f6 {[%clk 0:02:53]}  Bh8 {[%clk 0:02:09]} 22. Qg4 {[%clk 0:02:51]}  e4 {[%clk 0:02:00]} 23. dxe4 {[%clk 0:02:49]}  Ne5 {[%clk 0:01:54]} 24. Qf5 {[%clk 0:02:47]}  Ng6 {[%clk 0:01:51]} 25. Qe6+ {[%clk 0:02:33]}  Rff7 {[%clk 0:01:42]} 26. e5 {[%clk 0:02:31]}  Qd7 {[%clk 0:01:33]} 27. Qxd7 {[%clk 0:02:28]}  Rfxd7 {[%clk 0:01:34]} 28. e6 {[%clk 0:02:28]}  Rd6 {[%clk 0:01:35]} 29. e7 {[%clk 0:02:24]}  Kf7 {[%clk 0:01:31]} 30. Bf4 {[%clk 0:02:20]}  Re6 {[%clk 0:01:24]} 31. Nf5 {[%clk 0:02:20]}  Re4 {[%clk 0:01:17]} 32. Nd6+ {[%clk 0:02:16]}  Kg8 {[%clk 0:01:14]} 33. Nxe4 {[%clk 0:02:14]}  dxe4 {[%clk 0:01:13]} 34. e8=Q+ {[%clk 0:02:09]}  Nf8 {[%clk 0:01:13]} 1-0


[Site "https://www.chess.com"]

[Event "Titled Tuesday Blitz November 07 Early 2023"]
[White "Saya, Ethan"]
[Black "Lewicki, Miroslaw"]
[WhiteFideId "26095181"]
[BlackFideId "1113380"]
[WhiteElo "2335"]
[BlackElo "2592"]
[Result "1-0"]
[Round "2"]
[TimeControl "180+1"]
[Date "2023.11.07"]
[WhiteClock "0:00:11"]
[BlackClock "0:00:05"]
[Board "169"]

1. d4 {[%clk 0:03:00]}  g6 {[%clk 0:02:59]} 2. e4 {[%clk 0:03:00]}  f6 {[%clk 0:03:00]} 3. Nc3 {[%clk 0:03:00]}  Kf7 {[%clk 0:03:01]} 4. Bc4+ {[%clk 0:02:56]}  Kg7 {[%clk 0:03:02]} 5. f4 {[%clk 0:02:50]}  b6 {[%clk 0:03:01]} 6. Nf3 {[%clk 0:02:49]}  Ba6 {[%clk 0:03:01]} 7. Qe2 {[%clk 0:02:44]}  Qc8 {[%clk 0:03:00]} 8. e5 {[%clk 0:02:42]}  c6 {[%clk 0:02:59]} 9. Be3 {[%clk 0:02:38]}  d5 {[%clk 0:02:57]} 10. exd6 {[%clk 0:02:34]}  exd6 {[%clk 0:02:57]} 11. d5 {[%clk 0:02:32]}  Bxc4 {[%clk 0:02:54]} 12. Qxc4 {[%clk 0:02:31]}  c5 {[%clk 0:02:54]} 13. O-O {[%clk 0:02:19]}  a6 {[%clk 0:02:54]} 14. a4 {[%clk 0:02:19]}  Ne7 {[%clk 0:02:54]} 15. Rae1 {[%clk 0:02:13]}  Nd7 {[%clk 0:02:46]} 16. Ne4 {[%clk 0:02:09]}  Nf5 {[%clk 0:02:38]} 17. Bd2 {[%clk 0:02:07]}  h5 {[%clk 0:02:37]} 18. Bc3 {[%clk 0:02:07]}  Rb8 {[%clk 0:02:36]} 19. Nfg5 {[%clk 0:02:02]}  b5 {[%clk 0:02:36]} 20. Ne6+ {[%clk 0:02:00]}  Kf7 {[%clk 0:02:31]} 21. axb5 {[%clk 0:02:00]}  axb5 {[%clk 0:02:30]} 22. Qe2 {[%clk 0:01:57]}  b4 {[%clk 0:02:29]} 23. N4g5+ {[%clk 0:01:55]}  Kg8 {[%clk 0:02:28]} 24. Nxf8 {[%clk 0:01:35]}  Nxf8 {[%clk 0:02:08]} 25. Bxf6 {[%clk 0:01:33]}  Rh6 {[%clk 0:02:08]} 26. Ra1 {[%clk 0:01:19]}  Qe8 {[%clk 0:01:37]} 27. Ne6 {[%clk 0:01:14]}  Rh7 {[%clk 0:01:32]} 28. Rfe1 {[%clk 0:01:06]}  Rf7 {[%clk 0:01:31]} 29. Bg5 {[%clk 0:01:06]}  Nh7 {[%clk 0:01:22]} 30. Qc4 {[%clk 0:01:04]}  Qd7 {[%clk 0:01:10]} 31. c3 {[%clk 0:01:00]}  b3 {[%clk 0:01:00]} 32. Qa4 {[%clk 0:00:54]}  Qxa4 {[%clk 0:00:45]} 33. Rxa4 {[%clk 0:00:55]}  Nf6 {[%clk 0:00:46]} 34. Bxf6 {[%clk 0:00:52]}  Rxf6 {[%clk 0:00:46]} 35. Ra6 {[%clk 0:00:42]}  c4 {[%clk 0:00:29]} 36. Re2 {[%clk 0:00:35]}  Rf7 {[%clk 0:00:16]} 37. Rc6 {[%clk 0:00:34]}  Ra7 {[%clk 0:00:13]} 38. Rxc4 {[%clk 0:00:32]}  Ra2 {[%clk 0:00:13]} 39. Rc7 {[%clk 0:00:27]}  Ne3 {[%clk 0:00:12]} 40. Rxe3 {[%clk 0:00:20]}  Rxb2 {[%clk 0:00:12]} 41. Ng5 {[%clk 0:00:20]}  Rb1+ {[%clk 0:00:11]} 42. Kf2 {[%clk 0:00:21]}  b2 {[%clk 0:00:12]} 43. Ree7 {[%clk 0:00:19]}  Rf1+ {[%clk 0:00:06]} 44. Kg3 {[%clk 0:00:19]}  b1=Q {[%clk 0:00:04]} 45. Rg7+ {[%clk 0:00:19]}  Kh8 {[%clk 0:00:04]} 46. Rh7+ {[%clk 0:00:17]}  Kg8 {[%clk 0:00:05]} 47. Rcg7+ {[%clk 0:00:12]}  Kf8 {[%clk 0:00:05]} 48. Ne6+ {[%clk 0:00:11]}  Ke8 {[%clk 0:00:05]} 49. Re7# {[%clk 0:00:11]} 1-0


[Site "https://www.chess.com"]

[Event "Titled Tuesday Blitz November 07 Early 2023"]
[White "Bokros, Albert"]
[Black "Derjabin, Ilja"]
[WhiteFideId "710458"]
[BlackFideId "14104768"]
[WhiteElo "2328"]
[BlackElo "2574"]
[Result "1-0"]
[Round "2"]
[TimeControl "180+1"]
[Date "2023.11.07"]
[WhiteClock "0:02:08"]
[BlackClock "0:00:00"]
[Board "173"]

1. e4 {[%clk 0:03:00]}  c5 {[%clk 0:02:58]} 2. Nf3 {[%clk 0:03:00]}  d6 {[%clk 0:02:58]} 3. d4 {[%clk 0:03:00]}  cxd4 {[%clk 0:02:58]} 4. Nxd4 {[%clk 0:03:01]}  Nf6 {[%clk 0:02:58]} 5. Nc3 {[%clk 0:03:01]}  a6 {[%clk 0:02:46]} 6. Qe2 {[%clk 0:02:59]}  e5 {[%clk 0:02:43]} 7. Nf5 {[%clk 0:02:58]}  Bxf5 {[%clk 0:02:38]} 8. exf5 {[%clk 0:02:57]}  h6 {[%clk 0:02:35]} 9. g4 {[%clk 0:02:30]}  Nc6 {[%clk 0:02:15]} 10. Bg2 {[%clk 0:02:26]}  Nd4 {[%clk 0:02:12]} 11. Qd1 {[%clk 0:02:23]}  d5 {[%clk 0:02:04]} 12. Nxd5 {[%clk 0:02:14]}  Nxd5 {[%clk 0:02:02]} 13. c3 {[%clk 0:02:14]}  Bc5 {[%clk 0:01:45]} 14. cxd4 {[%clk 0:02:10]}  Bxd4 {[%clk 0:00:00]} 15. Qb3 {[%clk 0:02:08]} 1-0


[Site "https://www.chess.com"]

[Event "Titled Tuesday Blitz November 07 Early 2023"]
[White "Predator0608"]
[Black "Zampronha, Wladimir Camilo"]
[BlackFideId "2103087"]
[WhiteElo "2565"]
[BlackElo "2328"]
[Result "1-0"]
[Round "2"]
[TimeControl "180+1"]
[Date "2023.11.07"]
[WhiteClock "0:01:54"]
[BlackClock "0:01:06"]
[Board "174"]

1. e4 {[%clk 0:03:00]}  c5 {[%clk 0:02:59]} 2. Nf3 {[%clk 0:03:01]}  e6 {[%clk 0:03:00]} 3. d4 {[%clk 0:03:01]}  cxd4 {[%clk 0:03:01]} 4. Nxd4 {[%clk 0:03:01]}  Nc6 {[%clk 0:03:01]} 5. Nc3 {[%clk 0:03:02]}  Qc7 {[%clk 0:03:02]} 6. Be3 {[%clk 0:03:02]}  a6 {[%clk 0:03:02]} 7. Be2 {[%clk 0:03:01]}  Nf6 {[%clk 0:03:01]} 8. O-O {[%clk 0:03:00]}  Bb4 {[%clk 0:03:02]} 9. Na4 {[%clk 0:03:01]}  O-O {[%clk 0:02:56]} 10. Nxc6 {[%clk 0:03:00]}  bxc6 {[%clk 0:02:55]} 11. Nb6 {[%clk 0:03:01]}  Rb8 {[%clk 0:02:55]} 12. Nxc8 {[%clk 0:03:01]}  Rfxc8 {[%clk 0:02:55]} 13. Bxa6 {[%clk 0:03:01]}  Rf8 {[%clk 0:02:56]} 14. Bd3 {[%clk 0:02:56]}  Bd6 {[%clk 0:02:49]} 15. f4 {[%clk 0:02:55]}  e5 {[%clk 0:02:50]} 16. f5 {[%clk 0:02:56]}  Rxb2 {[%clk 0:02:39]} 17. g4 {[%clk 0:02:56]}  Rb4 {[%clk 0:02:33]} 18. Qf3 {[%clk 0:02:50]}  Qa5 {[%clk 0:02:27]} 19. g5 {[%clk 0:02:48]}  Ne8 {[%clk 0:02:27]} 20. Kh1 {[%clk 0:02:36]}  Ra4 {[%clk 0:02:22]} 21. Qe2 {[%clk 0:02:29]}  Bc5 {[%clk 0:02:18]} 22. Bd2 {[%clk 0:02:22]}  Bb4 {[%clk 0:02:05]} 23. Bxb4 {[%clk 0:02:07]}  Qxb4 {[%clk 0:02:05]} 24. Rab1 {[%clk 0:02:05]}  Qd4 {[%clk 0:02:03]} 25. g6 {[%clk 0:01:59]}  fxg6 {[%clk 0:01:58]} 26. fxg6 {[%clk 0:02:00]}  Rxf1+ {[%clk 0:01:57]} 27. Qxf1 {[%clk 0:01:55]}  hxg6 {[%clk 0:01:06]} 28. Rb8 {[%clk 0:01:54]} 1-0


[Site "https://www.chess.com"]

[Event "Titled Tuesday Blitz November 07 Early 2023"]
[White "Toktomushev, Teimur"]
[Black "Barbot, Pierre"]
[WhiteFideId "14176726"]
[BlackFideId "663727"]
[WhiteElo "2517"]
[BlackElo "2316"]
[Result "1-0"]
[Round "2"]
[TimeControl "180+1"]
[Date "2023.11.07"]
[WhiteClock "0:00:02"]
[BlackClock "0:00:00"]
[Board "179"]

1. d4 {[%clk 0:02:59]}  Nf6 {[%clk 0:02:59]} 2. c4 {[%clk 0:02:58]}  g6 {[%clk 0:02:59]} 3. Nc3 {[%clk 0:02:58]}  d5 {[%clk 0:03:00]} 4. cxd5 {[%clk 0:02:59]}  Nxd5 {[%clk 0:03:00]} 5. e4 {[%clk 0:03:00]}  Nxc3 {[%clk 0:03:00]} 6. bxc3 {[%clk 0:03:01]}  Bg7 {[%clk 0:02:59]} 7. Be3 {[%clk 0:03:02]}  c5 {[%clk 0:02:55]} 8. Qd2 {[%clk 0:03:01]}  Qa5 {[%clk 0:02:48]} 9. Nf3 {[%clk 0:03:00]}  Nc6 {[%clk 0:02:35]} 10. Rc1 {[%clk 0:02:57]}  cxd4 {[%clk 0:02:26]} 11. cxd4 {[%clk 0:02:58]}  Qxd2+ {[%clk 0:02:26]} 12. Kxd2 {[%clk 0:02:59]}  O-O {[%clk 0:02:00]} 13. d5 {[%clk 0:02:50]}  Rd8 {[%clk 0:01:41]} 14. Bc4 {[%clk 0:02:18]}  Ne5 {[%clk 0:00:18]} 15. Nxe5 {[%clk 0:02:17]}  Bxe5 {[%clk 0:00:19]} 16. Ke2 {[%clk 0:01:54]}  Bg7 {[%clk 0:00:18]} 17. Rhd1 {[%clk 0:01:40]}  Bd7 {[%clk 0:00:17]} 18. d6 {[%clk 0:00:24]}  exd6 {[%clk 0:00:14]} 19. Rxd6 {[%clk 0:00:25]}  Bc6 {[%clk 0:00:13]} 20. Rxd8+ {[%clk 0:00:14]}  Rxd8 {[%clk 0:00:14]} 21. Bd5 {[%clk 0:00:12]}  Bxd5 {[%clk 0:00:08]} 22. exd5 {[%clk 0:00:13]}  Bf6 {[%clk 0:00:04]} 23. Rd1 {[%clk 0:00:05]}  b6 {[%clk 0:00:02]} 24. Kf3 {[%clk 0:00:05]}  Kf8 {[%clk 0:00:02]} 25. Ke4 {[%clk 0:00:05]}  Ke7 {[%clk 0:00:02]} 26. Rc1 {[%clk 0:00:06]}  Rd7 {[%clk 0:00:02]} 27. Rc8 {[%clk 0:00:04]}  Bg7 {[%clk 0:00:02]} 28. Bg5+ {[%clk 0:00:04]}  f6 {[%clk 0:00:02]} 29. Bf4 {[%clk 0:00:04]}  f5+ {[%clk 0:00:02]} 30. Kf3 {[%clk 0:00:02]}  Rxd5 {[%clk 0:00:03]} 31. Bg5+ {[%clk 0:00:01]}  Ke6 {[%clk 0:00:03]} 32. Re8+ {[%clk 0:00:02]}  Kd7 {[%clk 0:00:03]} 33. Re7+ {[%clk 0:00:02]}  Kd6 {[%clk 0:00:03]} 34. Rxg7 {[%clk 0:00:03]}  Rd3+ {[%clk 0:00:03]} 35. Ke2 {[%clk 0:00:02]}  Ra3 {[%clk 0:00:04]} 36. Bf4+ {[%clk 0:00:02]}  Ke6 {[%clk 0:00:03]} 37. Rxh7 {[%clk 0:00:02]}  Rxa2+ {[%clk 0:00:04]} 38. Kf3 {[%clk 0:00:03]}  b5 {[%clk 0:00:04]} 39. Rb7 {[%clk 0:00:02]}  a6 {[%clk 0:00:03]} 40. h4 {[%clk 0:00:03]}  Ra3+ {[%clk 0:00:03]} 41. Be3 {[%clk 0:00:03]}  Rb3 {[%clk 0:00:02]} 42. g3 {[%clk 0:00:03]}  a5 {[%clk 0:00:03]} 43. Kf4 {[%clk 0:00:02]}  a4 {[%clk 0:00:03]} 44. Ra7 {[%clk 0:00:02]}  a3 {[%clk 0:00:02]} 45. Kg5 {[%clk 0:00:02]}  b4 {[%clk 0:00:02]} 46. Bc5 {[%clk 0:00:02]}  Rb2 {[%clk 0:00:02]} 47. Bxb4 {[%clk 0:00:02]}  Rxb4 {[%clk 0:00:03]} 48. Rxa3 {[%clk 0:00:02]}  Rg4+ {[%clk 0:00:03]} 49. Kh6 {[%clk 0:00:03]}  f4 {[%clk 0:00:03]} 50. Ra6+ {[%clk 0:00:02]}  Kf5 {[%clk 0:00:03]} 51. Ra5+ {[%clk 0:00:03]}  Kf6 {[%clk 0:00:00]} 52. Rg5 {[%clk 0:00:02]} 1-0


[Site "https://www.chess.com"]

[Event "Titled Tuesday Blitz November 07 Early 2023"]
[White "Ardila, Oscar Humberto"]
[Black "Dushyant Sharma"]
[WhiteFideId "4404742"]
[BlackFideId "25065130"]
[WhiteElo "2316"]
[BlackElo "2517"]
[Result "0-1"]
[Round "2"]
[TimeControl "180+1"]
[Date "2023.11.07"]
[WhiteClock "0:00:18"]
[BlackClock "0:00:20"]
[Board "180"]

1. d4 {[%clk 0:03:00]}  d5 {[%clk 0:02:45]} 2. c4 {[%clk 0:03:00]}  e6 {[%clk 0:02:44]} 3. Nc3 {[%clk 0:03:00]}  c6 {[%clk 0:02:44]} 4. Nf3 {[%clk 0:02:59]}  f5 {[%clk 0:02:44]} 5. cxd5 {[%clk 0:02:57]}  exd5 {[%clk 0:02:44]} 6. g3 {[%clk 0:02:55]}  Nf6 {[%clk 0:02:45]} 7. Bg2 {[%clk 0:02:55]}  Bd6 {[%clk 0:02:45]} 8. O-O {[%clk 0:02:55]}  O-O {[%clk 0:02:45]} 9. Bg5 {[%clk 0:02:55]}  Qe8 {[%clk 0:02:45]} 10. Qc2 {[%clk 0:02:52]}  Ne4 {[%clk 0:02:45]} 11. Bf4 {[%clk 0:02:25]}  Bxf4 {[%clk 0:02:43]} 12. gxf4 {[%clk 0:02:26]}  Be6 {[%clk 0:02:41]} 13. Ne5 {[%clk 0:02:24]}  Nd7 {[%clk 0:02:40]} 14. e3 {[%clk 0:02:23]}  Qh5 {[%clk 0:02:35]} 15. f3 {[%clk 0:02:22]}  Nd6 {[%clk 0:02:30]} 16. Qf2 {[%clk 0:02:21]}  Rae8 {[%clk 0:02:26]} 17. Kh1 {[%clk 0:02:20]}  Kh8 {[%clk 0:02:24]} 18. Rg1 {[%clk 0:02:20]}  Rf6 {[%clk 0:02:09]} 19. Bf1 {[%clk 0:02:20]}  Rh6 {[%clk 0:02:08]} 20. Rg5 {[%clk 0:02:20]}  Qh4 {[%clk 0:02:04]} 21. Qxh4 {[%clk 0:02:13]}  Rxh4 {[%clk 0:02:05]} 22. Bd3 {[%clk 0:02:13]}  g6 {[%clk 0:02:03]} 23. Rag1 {[%clk 0:02:12]}  Nxe5 {[%clk 0:01:59]} 24. fxe5 {[%clk 0:02:01]}  Nf7 {[%clk 0:01:51]} 25. R5g3 {[%clk 0:01:55]}  f4 {[%clk 0:01:51]} 26. exf4 {[%clk 0:01:53]}  Rxf4 {[%clk 0:01:52]} 27. Ne2 {[%clk 0:01:53]}  Rh4 {[%clk 0:01:51]} 28. b4 {[%clk 0:01:32]}  a6 {[%clk 0:01:44]} 29. f4 {[%clk 0:01:27]}  Nh6 {[%clk 0:01:39]} 30. Rf1 {[%clk 0:01:15]}  Bf5 {[%clk 0:01:29]} 31. Rf2 {[%clk 0:00:57]}  Bxd3 {[%clk 0:01:08]} 32. Rxd3 {[%clk 0:00:57]}  Nf5 {[%clk 0:01:09]} 33. Kg2 {[%clk 0:00:56]}  Rg8 {[%clk 0:00:59]} 34. Ng3 {[%clk 0:00:53]}  Rf8 {[%clk 0:00:54]} 35. a4 {[%clk 0:00:47]}  Kg7 {[%clk 0:00:51]} 36. b5 {[%clk 0:00:44]}  axb5 {[%clk 0:00:51]} 37. axb5 {[%clk 0:00:44]}  Ne7 {[%clk 0:00:48]} 38. bxc6 {[%clk 0:00:42]}  bxc6 {[%clk 0:00:49]} 39. Ne2 {[%clk 0:00:39]}  h5 {[%clk 0:00:47]} 40. Rb3 {[%clk 0:00:33]}  Kf7 {[%clk 0:00:45]} 41. Rb7 {[%clk 0:00:32]}  Ke6 {[%clk 0:00:45]} 42. Rb6 {[%clk 0:00:31]}  Rg4+ {[%clk 0:00:42]} 43. Kf3 {[%clk 0:00:29]}  g5 {[%clk 0:00:41]} 44. h3 {[%clk 0:00:29]}  Rh4 {[%clk 0:00:28]} 45. Kg3 {[%clk 0:00:29]}  Nf5+ {[%clk 0:00:22]} 46. Kg2 {[%clk 0:00:27]}  gxf4 {[%clk 0:00:20]} 47. Rxc6+ {[%clk 0:00:25]}  Kd7 {[%clk 0:00:20]} 48. Rf6 {[%clk 0:00:24]}  Ne3+ {[%clk 0:00:18]} 49. Kg1 {[%clk 0:00:21]}  Rg8+ {[%clk 0:00:17]} 50. Kh2 {[%clk 0:00:20]}  Ng4+ {[%clk 0:00:17]} 51. Kg1 {[%clk 0:00:18]}  Nxf6+ {[%clk 0:00:17]} 52. Kf1 {[%clk 0:00:19]}  Ne4 {[%clk 0:00:18]} 53. Rxf4 {[%clk 0:00:19]}  Rxf4+ {[%clk 0:00:18]} 54. Nxf4 {[%clk 0:00:20]}  Rf8 {[%clk 0:00:19]} 55. Ke2 {[%clk 0:00:20]}  Rxf4 {[%clk 0:00:20]} 56. Ke3 {[%clk 0:00:18]}  Rh4 {[%clk 0:00:20]} 0-1


[Site "https://www.chess.com"]

[Event "Titled Tuesday Blitz November 07 Early 2023"]
[White "Ahmad, Khagan"]
[Black "Petrova, Irina"]
[WhiteFideId "13431552"]
[BlackFideId "14124122"]
[WhiteElo "2512"]
[BlackElo "2308"]
[Result "1-0"]
[Round "2"]
[TimeControl "180+1"]
[Date "2023.11.07"]
[WhiteClock "0:01:37"]
[BlackClock "0:01:53"]
[Board "184"]

1. Nf3 {[%clk 0:02:54]}  d6 {[%clk 0:03:00]} 2. d4 {[%clk 0:02:51]}  g6 {[%clk 0:03:00]} 3. c4 {[%clk 0:02:51]}  Bg7 {[%clk 0:03:01]} 4. Nc3 {[%clk 0:02:51]}  Nc6 {[%clk 0:03:01]} 5. e4 {[%clk 0:02:50]}  e5 {[%clk 0:03:01]} 6. dxe5 {[%clk 0:02:50]}  Nxe5 {[%clk 0:03:00]} 7. Nxe5 {[%clk 0:02:50]}  Bxe5 {[%clk 0:03:01]} 8. Be3 {[%clk 0:02:50]}  Nf6 {[%clk 0:03:01]} 9. Be2 {[%clk 0:02:51]}  O-O {[%clk 0:02:59]} 10. O-O {[%clk 0:02:45]}  Bxc3 {[%clk 0:02:51]} 11. bxc3 {[%clk 0:02:46]}  Nxe4 {[%clk 0:02:51]} 12. Bf3 {[%clk 0:02:41]}  Nf6 {[%clk 0:02:50]} 13. Qd4 {[%clk 0:02:30]}  Kg7 {[%clk 0:02:47]} 14. Rab1 {[%clk 0:02:20]}  c6 {[%clk 0:02:44]} 15. Qh4 {[%clk 0:02:14]}  h5 {[%clk 0:02:42]} 16. Bg5 {[%clk 0:02:12]}  Bf5 {[%clk 0:02:40]} 17. Rxb7 {[%clk 0:02:11]}  Re8 {[%clk 0:02:30]} 18. Bxc6 {[%clk 0:02:09]}  Re2 {[%clk 0:02:21]} 19. Bf3 {[%clk 0:01:52]}  Re6 {[%clk 0:02:14]} 20. Bd5 {[%clk 0:01:50]}  Qc8 {[%clk 0:02:08]} 21. Bxe6 {[%clk 0:01:41]}  Qxb7 {[%clk 0:02:05]} 22. Bxf6+ {[%clk 0:01:40]}  Kg8 {[%clk 0:01:57]} 23. Bxf5 {[%clk 0:01:37]}  gxf5 {[%clk 0:01:53]} 1-0


[Site "https://www.chess.com"]